[Event "Early-Titled-Tuesday-Blitz-August-29-2023"]
[Site "Chess.com"]
[Date "2023.08.29"]
[Round "6"]
[White "likantrophuss"]
[Black "suyu28"]
[Result "0-1"]
[WhiteElo "2542"]
[BlackElo "2726"]
[TimeControl "180+1"]
[EndTime "9:06:46 PDT"]
[Termination "suyu28 won by resignation"]

1. e4 {[%clk 0:03:00.9]} 1... c6 {[%clk 0:02:59.7]} 2. d4 {[%clk 0:03:00.4]}
2... d5 {[%clk 0:03:00.3]} 3. e5 {[%clk 0:03:00.8]} 3... Bf5 {[%clk 0:02:59.9]}
4. h4 {[%clk 0:03:00.7]} 4... h5 {[%clk 0:02:57.7]} 5. Bd3 {[%clk 0:03:00.5]}
5... Bxd3 {[%clk 0:02:57.4]} 6. Qxd3 {[%clk 0:03:01.4]} 6... e6 {[%clk
0:02:57.8]} 7. Nf3 {[%clk 0:02:57.7]} 7... Qa5+ {[%clk 0:02:56.9]} 8. Bd2 {[%clk
0:02:57.5]} 8... Qb5 {[%clk 0:02:56.7]} 9. Qb3 {[%clk 0:02:53.9]} 9... Nh6
{[%clk 0:02:51.2]} 10. Bxh6 {[%clk 0:02:51]} 10... Rxh6 {[%clk 0:02:50.4]} 11.
Nc3 {[%clk 0:02:49.4]} 11... Qa6 {[%clk 0:02:49.6]} 12. Ne2 {[%clk 0:02:44.9]}
12... Nd7 {[%clk 0:02:49.2]} 13. Nf4 {[%clk 0:02:28.2]} 13... c5 {[%clk
0:02:46.6]} 14. c3 {[%clk 0:02:27.8]} 14... Rc8 {[%clk 0:02:42.6]} 15. a4 {[%clk
0:02:20.2]} 15... cxd4 {[%clk 0:02:35.4]} 16. cxd4 {[%clk 0:02:20]} 16... Qa5+
{[%clk 0:02:35.3]} 17. Kf1 {[%clk 0:02:19.1]} 17... Bb4 {[%clk 0:02:34.8]} 18.
Kg1 {[%clk 0:02:13.3]} 18... Nb8 {[%clk 0:02:28.1]} 19. Kh2 {[%clk 0:02:08.9]}
19... Nc6 {[%clk 0:02:27.7]} 20. Rhd1 {[%clk 0:02:00.6]} 20... Qb6 {[%clk
0:02:26.7]} 21. Rac1 {[%clk 0:01:48.4]} 21... Be7 {[%clk 0:02:21.5]} 22. Qc2
{[%clk 0:01:43.2]} 22... Kd7 {[%clk 0:02:18.2]} 23. Ng5 {[%clk 0:01:30.3]} 23...
Bxg5 {[%clk 0:02:17.3]} 24. hxg5 {[%clk 0:01:30.1]} 24... Rhh8 {[%clk
0:02:18.2]} 25. Qd2 {[%clk 0:01:22.6]} 25... g6 {[%clk 0:02:11.5]} 26. Rc3
{[%clk 0:01:18.5]} 26... Na5 {[%clk 0:01:57.9]} 27. Nd3 {[%clk 0:01:09.1]} 27...
Nb3 {[%clk 0:01:52.5]} 28. Qf4 {[%clk 0:01:06.2]} 28... Rhf8 {[%clk 0:01:43.6]}
29. a5 {[%clk 0:01:02.7]} 29... Qb5 {[%clk 0:01:30.4]} 30. Rxc8 {[%clk
0:00:54.3]} 30... Kxc8 {[%clk 0:01:30.3]} 31. Nc5 {[%clk 0:00:40.9]} 31... Nxc5
{[%clk 0:01:26]} 32. dxc5 {[%clk 0:00:41.8]} 32... Qxa5 {[%clk 0:01:23.4]} 33.
Rc1 {[%clk 0:00:40.8]} 33... Kd7 {[%clk 0:01:20.1]} 34. Rc3 {[%clk 0:00:36.5]}
34... Qb5 {[%clk 0:01:14.4]} 35. Qf6 {[%clk 0:00:35.8]} 35... Qxb2 {[%clk
0:01:05.4]} 36. Rf3 {[%clk 0:00:30.9]} 36... Qd4 {[%clk 0:00:55.6]} 37. g3
{[%clk 0:00:29.9]} 37... Qxc5 {[%clk 0:00:53.5]} 38. Qg7 {[%clk 0:00:28.3]}
38... Qe7 {[%clk 0:00:52.8]} 39. Rb3 {[%clk 0:00:28]} 39... b6 {[%clk
0:00:52.6]} 40. Rc3 {[%clk 0:00:28.4]} 40... a5 {[%clk 0:00:48.9]} 41. f4 {[%clk
0:00:20.2]} 41... a4 {[%clk 0:00:41.5]} 42. Rd3 {[%clk 0:00:20]} 42... a3 {[%clk
0:00:40.3]} 43. Rd1 {[%clk 0:00:17.7]} 43... a2 {[%clk 0:00:39.9]} 44. Kh3
{[%clk 0:00:17.8]} 44... Ra8 {[%clk 0:00:35.6]} 45. Ra1 {[%clk 0:00:16.3]} 45...
b5 {[%clk 0:00:36]} 46. f5 {[%clk 0:00:16.7]} 46... gxf5 {[%clk 0:00:27.8]} 47.
g6 {[%clk 0:00:15.9]} 47... fxg6 {[%clk 0:00:28.1]} 48. Qxg6 {[%clk 0:00:16.8]}
48... b4 {[%clk 0:00:27.7]} 49. Qh6 {[%clk 0:00:16.2]} 49... b3 {[%clk
0:00:27.3]} 50. Qd2 {[%clk 0:00:15.8]} 50... Qc5 {[%clk 0:00:26.1]} 51. Qh6
{[%clk 0:00:14.1]} 51... b2 {[%clk 0:00:23.9]} 52. Qg7+ {[%clk 0:00:14.1]} 52...
Qe7 {[%clk 0:00:24.1]} 0-1

[Event "Early-Titled-Tuesday-Blitz-August-29-2023"]
[Site "Chess.com"]
[Date "2023.08.29"]
[Round "6"]
[White "Orest_Vovk"]
[Black "GalaxyRoman"]
[Result "1-0"]
[WhiteElo "2558"]
[BlackElo "2704"]
[TimeControl "180+1"]
[EndTime "9:06:48 PDT"]
[Termination "Orest_Vovk won by resignation"]

1. e4 {[%clk 0:02:59.6]} 1... e5 {[%clk 0:02:59.7]} 2. Nf3 {[%clk 0:02:58.3]}
2... Nc6 {[%clk 0:02:59.2]} 3. Bb5 {[%clk 0:02:56.3]} 3... a6 {[%clk 0:02:58.8]}
4. Bxc6 {[%clk 0:02:54.3]} 4... dxc6 {[%clk 0:02:59.7]} 5. O-O {[%clk
0:02:54.4]} 5... Bg4 {[%clk 0:02:56.9]} 6. h3 {[%clk 0:02:54.4]} 6... h5 {[%clk
0:02:57]} 7. d3 {[%clk 0:02:54.3]} 7... Qf6 {[%clk 0:02:55.2]} 8. Be3 {[%clk
0:02:52.1]} 8... Bxf3 {[%clk 0:02:46.1]} 9. Qxf3 {[%clk 0:02:51.8]} 9... Qxf3
{[%clk 0:02:46.4]} 10. gxf3 {[%clk 0:02:52.7]} 10... Ne7 {[%clk 0:02:45.2]} 11.
f4 {[%clk 0:02:52.2]} 11... exf4 {[%clk 0:02:39.2]} 12. Bxf4 {[%clk 0:02:52.4]}
12... O-O-O {[%clk 0:02:39.8]} 13. Nc3 {[%clk 0:02:50.5]} 13... f6 {[%clk
0:02:39.3]} 14. Rae1 {[%clk 0:02:47.1]} 14... g5 {[%clk 0:02:37.7]} 15. Bh2
{[%clk 0:02:45.9]} 15... Ng6 {[%clk 0:02:37.9]} 16. f4 {[%clk 0:02:45.4]} 16...
Bc5+ {[%clk 0:02:35.1]} 17. Kh1 {[%clk 0:02:45]} 17... g4 {[%clk 0:02:10.7]} 18.
e5 {[%clk 0:02:26.1]} 18... f5 {[%clk 0:02:03.3]} 19. Ne2 {[%clk 0:02:21.9]}
19... Ne7 {[%clk 0:01:46.2]} 20. Bg1 {[%clk 0:02:13.1]} 20... Bxg1 {[%clk
0:01:24.9]} 21. Rxg1 {[%clk 0:02:14]} 21... Rdg8 {[%clk 0:01:21.7]} 22. Kh2
{[%clk 0:02:00.3]} 22... Kd7 {[%clk 0:01:19.6]} 23. c4 {[%clk 0:01:54.2]} 23...
c5 {[%clk 0:01:19]} 24. d4 {[%clk 0:01:50.1]} 24... cxd4 {[%clk 0:01:09.1]} 25.
Nxd4 {[%clk 0:01:51]} 25... c5 {[%clk 0:01:09.4]} 26. Nc2 {[%clk 0:01:43.5]}
26... h4 {[%clk 0:01:00.2]} 27. hxg4 {[%clk 0:01:34.7]} 27... fxg4 {[%clk
0:00:55.1]} 28. Rd1+ {[%clk 0:01:29.4]} 28... Kc7 {[%clk 0:00:38.8]} 29. Ne3
{[%clk 0:01:28.9]} 29... g3+ {[%clk 0:00:36]} 30. Kh3 {[%clk 0:01:28.6]} 30...
Ng6 {[%clk 0:00:32.9]} 31. Nd5+ {[%clk 0:01:22.2]} 31... Kb8 {[%clk 0:00:30.6]}
32. e6 {[%clk 0:01:15]} 32... Rf8 {[%clk 0:00:27.3]} 33. e7 {[%clk 0:00:45.2]}
33... Rf7 {[%clk 0:00:12.3]} 34. Rde1 {[%clk 0:00:32.9]} 34... Re8 {[%clk
0:00:11.9]} 35. Re4 {[%clk 0:00:31.4]} 35... Kc8 {[%clk 0:00:08.7]} 36. Rge1
{[%clk 0:00:28.5]} 36... Kd7 {[%clk 0:00:07.5]} 37. Rd1 {[%clk 0:00:21.5]} 37...
Kc6 {[%clk 0:00:04.6]} 38. Re6+ {[%clk 0:00:20.8]} 38... Kd7 {[%clk 0:00:02.5]}
39. Rxg6 {[%clk 0:00:21.7]} 39... Kc8 {[%clk 0:00:02.1]} 40. Rh6 {[%clk
0:00:16.8]} 40... Rg7 {[%clk 0:00:01.8]} 41. Rxh4 {[%clk 0:00:16.2]} 41... g2
{[%clk 0:00:02.4]} 42. Rg1 {[%clk 0:00:16.3]} 42... Reg8 {[%clk 0:00:03.3]} 43.
f5 {[%clk 0:00:14.9]} 43... Rg3+ {[%clk 0:00:03.1]} 44. Kh2 {[%clk 0:00:15.2]}
44... Rf3 {[%clk 0:00:03.7]} 45. f6 {[%clk 0:00:14.8]} 45... Kd7 {[%clk
0:00:03.4]} 46. Rxg2 {[%clk 0:00:14.3]} 46... Re8 {[%clk 0:00:03.8]} 47. Rh7
{[%clk 0:00:12.3]} 47... b5 {[%clk 0:00:03.9]} 48. f7 {[%clk 0:00:12.3]} 1-0

[Event "Early-Titled-Tuesday-Blitz-August-29-2023"]
[Site "Chess.com"]
[Date "2023.08.29"]
[Round "6"]
[White "Magila31"]
[Black "benny_aizenberg"]
[Result "0-1"]
[WhiteElo "2480"]
[BlackElo "2660"]
[TimeControl "180+1"]
[EndTime "9:06:49 PDT"]
[Termination "benny_aizenberg won by resignation"]

1. d4 {[%clk 0:02:59.4]} 1... e5 {[%clk 0:02:57.5]} 2. dxe5 {[%clk 0:02:58.6]}
2... Nc6 {[%clk 0:02:57.9]} 3. Nf3 {[%clk 0:02:57.9]} 3... Qe7 {[%clk
0:02:58.3]} 4. Nc3 {[%clk 0:02:57.2]} 4... Nxe5 {[%clk 0:02:57.5]} 5. Nd5 {[%clk
0:02:57.3]} 5... Nxf3+ {[%clk 0:02:51.9]} 6. gxf3 {[%clk 0:02:57.5]} 6... Qd8
{[%clk 0:02:46.9]} 7. Qd4 {[%clk 0:02:56.7]} 7... d6 {[%clk 0:02:43.6]} 8. Rg1
{[%clk 0:02:44.4]} 8... Be6 {[%clk 0:02:14.8]} 9. Bg5 {[%clk 0:02:32.2]} 9... f6
{[%clk 0:02:11.4]} 10. Bd2 {[%clk 0:02:28.9]} 10... Ne7 {[%clk 0:02:03.7]} 11.
Nf4 {[%clk 0:02:23.5]} 11... Bf7 {[%clk 0:02:01.4]} 12. Bh3 {[%clk 0:02:22.7]}
12... Nc6 {[%clk 0:01:34.4]} 13. Qa4 {[%clk 0:02:15.3]} 13... a6 {[%clk
0:01:28.7]} 14. O-O-O {[%clk 0:02:11.9]} 14... b5 {[%clk 0:01:26.4]} 15. Qe4+
{[%clk 0:02:10.9]} 15... Ne7 {[%clk 0:01:19.4]} 16. Be6 {[%clk 0:01:58.3]} 16...
d5 {[%clk 0:00:39.7]} 17. Bxf7+ {[%clk 0:01:56.5]} 17... Kxf7 {[%clk 0:00:40.1]}
18. Qe6+ {[%clk 0:01:55.9]} 18... Ke8 {[%clk 0:00:40.7]} 19. Bb4 {[%clk
0:01:45.6]} 19... Qd7 {[%clk 0:00:36.5]} 20. Bxe7 {[%clk 0:01:40.1]} 20... Qxe6
{[%clk 0:00:32.9]} 21. Nxe6 {[%clk 0:01:38.8]} 21... Kxe7 {[%clk 0:00:33]} 22.
Nxc7 {[%clk 0:01:29.1]} 22... Rc8 {[%clk 0:00:32.4]} 23. Nxd5+ {[%clk
0:01:28.1]} 23... Kf7 {[%clk 0:00:32]} 24. e4 {[%clk 0:01:20.5]} 24... Bc5
{[%clk 0:00:30.9]} 25. Ne3 {[%clk 0:01:09]} 25... Rc7 {[%clk 0:00:28.6]} 26. Kb1
{[%clk 0:01:06.6]} 26... Rhc8 {[%clk 0:00:28.3]} 27. Rd2 {[%clk 0:01:03]} 27...
g6 {[%clk 0:00:26.7]} 28. Rgd1 {[%clk 0:01:02.1]} 28... Ke6 {[%clk 0:00:27.1]}
29. Nd5 {[%clk 0:00:57.8]} 29... Rb7 {[%clk 0:00:25.9]} 30. Nf4+ {[%clk
0:00:57]} 30... Ke7 {[%clk 0:00:24.3]} 31. c3 {[%clk 0:00:53.3]} 31... a5 {[%clk
0:00:22.8]} 32. Nd5+ {[%clk 0:00:48.9]} 32... Ke6 {[%clk 0:00:22.6]} 33. f4
{[%clk 0:00:46.4]} 33... a4 {[%clk 0:00:22.8]} 34. Ne3 {[%clk 0:00:43.9]} 34...
a3 {[%clk 0:00:21.2]} 35. b3 {[%clk 0:00:41.9]} 35... Bxe3 {[%clk 0:00:21.2]}
36. fxe3 {[%clk 0:00:41.6]} 36... Rxc3 {[%clk 0:00:21.8]} 37. Rd3 {[%clk
0:00:36.9]} 37... Rbc7 {[%clk 0:00:21.7]} 38. Rd6+ {[%clk 0:00:26.6]} 38... Ke7
{[%clk 0:00:21.6]} 39. R6d3 {[%clk 0:00:26.1]} 39... b4 {[%clk 0:00:21.1]} 40.
h4 {[%clk 0:00:22]} 40... h5 {[%clk 0:00:20.8]} 41. f5 {[%clk 0:00:21.9]} 41...
g5 {[%clk 0:00:12.6]} 42. hxg5 {[%clk 0:00:20.5]} 42... fxg5 {[%clk 0:00:13.5]}
43. e5 {[%clk 0:00:21]} 43... h4 {[%clk 0:00:14.1]} 44. e4 {[%clk 0:00:14.2]}
44... g4 {[%clk 0:00:13.7]} 45. e6 {[%clk 0:00:13.5]} 45... g3 {[%clk
0:00:13.5]} 46. Rd7+ {[%clk 0:00:13.6]} 46... Kf6 {[%clk 0:00:07.8]} 47. Rxc7
{[%clk 0:00:13.8]} 47... Rxc7 {[%clk 0:00:07.3]} 48. Rd7 {[%clk 0:00:14.5]}
48... Rxd7 {[%clk 0:00:07.2]} 49. exd7 {[%clk 0:00:14.6]} 49... Ke7 {[%clk
0:00:07.8]} 0-1

[Event "Early-Titled-Tuesday-Blitz-August-29-2023"]
[Site "Chess.com"]
[Date "2023.08.29"]
[Round "6"]
[White "NovikovaGalina"]
[Black "Ural_bogatyr"]
[Result "1/2-1/2"]
[WhiteElo "2401"]
[BlackElo "2556"]
[TimeControl "180+1"]
[EndTime "9:06:49 PDT"]
[Termination "Game drawn by repetition"]

1. e4 {[%clk 0:03:00.9]} 1... e5 {[%clk 0:02:31.5]} 2. Nf3 {[%clk 0:02:58.6]}
2... Nc6 {[%clk 0:02:31.6]} 3. Bc4 {[%clk 0:02:58.7]} 3... Bc5 {[%clk
0:02:30.9]} 4. b4 {[%clk 0:02:58.6]} 4... Bxb4 {[%clk 0:02:30.5]} 5. c3 {[%clk
0:02:59.3]} 5... Ba5 {[%clk 0:02:30.9]} 6. d4 {[%clk 0:02:59.9]} 6... d6 {[%clk
0:02:24.7]} 7. Qb3 {[%clk 0:02:57.6]} 7... Qe7 {[%clk 0:02:20.8]} 8. O-O {[%clk
0:02:45.2]} 8... Bb6 {[%clk 0:02:19.1]} 9. Nbd2 {[%clk 0:02:42.3]} 9... Na5
{[%clk 0:02:17.6]} 10. Qc2 {[%clk 0:02:40.3]} 10... Nxc4 {[%clk 0:02:16.2]} 11.
Nxc4 {[%clk 0:02:41.2]} 11... exd4 {[%clk 0:02:16.2]} 12. cxd4 {[%clk
0:02:39.8]} 12... Bg4 {[%clk 0:02:12.4]} 13. Bg5 {[%clk 0:02:04.3]} 13... f6
{[%clk 0:02:07.2]} 14. Be3 {[%clk 0:02:02.9]} 14... Bxf3 {[%clk 0:01:59.3]} 15.
gxf3 {[%clk 0:02:03.8]} 15... Nh6 {[%clk 0:01:59.5]} 16. a4 {[%clk 0:02:00.8]}
16... c6 {[%clk 0:01:56.2]} 17. Nxb6 {[%clk 0:01:50.3]} 17... axb6 {[%clk
0:01:53.1]} 18. Qb3 {[%clk 0:01:48.2]} 18... Ra6 {[%clk 0:01:49.4]} 19. Bxh6
{[%clk 0:01:43.4]} 19... gxh6 {[%clk 0:01:47.9]} 20. Kh1 {[%clk 0:01:43.8]}
20... Qf7 {[%clk 0:01:46.2]} 21. Qc3 {[%clk 0:01:36.6]} 21... Rg8 {[%clk
0:01:42.7]} 22. Rg1 {[%clk 0:01:34]} 22... Rxg1+ {[%clk 0:01:41.4]} 23. Rxg1
{[%clk 0:01:32.8]} 23... Rxa4 {[%clk 0:01:39.6]} 24. Qe3 {[%clk 0:01:20.9]}
24... Ra5 {[%clk 0:01:13.4]} 25. Qxh6 {[%clk 0:01:12.5]} 25... Rg5 {[%clk
0:01:13.7]} 26. Ra1 {[%clk 0:00:42.8]} 26... Qg6 {[%clk 0:00:44]} 27. Qh3 {[%clk
0:00:42.1]} 27... f5 {[%clk 0:00:39.3]} 28. f4 {[%clk 0:00:36.3]} 28... Rh5
{[%clk 0:00:34.4]} 29. Ra8+ {[%clk 0:00:21.1]} 29... Kd7 {[%clk 0:00:31.1]} 30.
Qb3 {[%clk 0:00:06.1]} 30... fxe4 {[%clk 0:00:05.4]} 31. Qxb6 {[%clk 0:00:05.3]}
31... Rxh2+ {[%clk 0:00:05]} 32. Kxh2 {[%clk 0:00:04.5]} 32... Qh5+ {[%clk
0:00:05.2]} 33. Kg1 {[%clk 0:00:05.1]} 33... Qg4+ {[%clk 0:00:05.1]} 34. Kf1
{[%clk 0:00:04.8]} 34... Qd1+ {[%clk 0:00:04.8]} 35. Kg2 {[%clk 0:00:05.2]}
35... Qf3+ {[%clk 0:00:05.2]} 36. Kf1 {[%clk 0:00:05.1]} 36... Qd1+ {[%clk
0:00:05.1]} 37. Kg2 {[%clk 0:00:05.6]} 37... Qf3+ {[%clk 0:00:05.1]} 38. Kh2
{[%clk 0:00:05.9]} 38... Qxf4+ {[%clk 0:00:04.7]} 39. Kh3 {[%clk 0:00:06.5]}
39... Qf3+ {[%clk 0:00:03.1]} 40. Kh2 {[%clk 0:00:05.2]} 40... Qxf2+ {[%clk
0:00:03]} 41. Kh3 {[%clk 0:00:06.1]} 41... Qf3+ {[%clk 0:00:03]} 42. Kh2 {[%clk
0:00:06.4]} 42... Qf2+ {[%clk 0:00:03.2]} 43. Kh3 {[%clk 0:00:07.1]} 43... Qf3+
{[%clk 0:00:02.4]} 44. Kh2 {[%clk 0:00:07.7]} 44... Qf2+ {[%clk 0:00:02.6]}
1/2-1/2

[Event "Early-Titled-Tuesday-Blitz-August-29-2023"]
[Site "Chess.com"]
[Date "2023.08.29"]
[Round "6"]
[White "Maili15"]
[Black "Mihaiionescu1"]
[Result "0-1"]
[WhiteElo "2331"]
[BlackElo "2507"]
[TimeControl "180+1"]
[EndTime "9:06:50 PDT"]
[Termination "Mihaiionescu1 won on time"]

1. e4 {[%clk 0:03:00.9]} 1... c5 {[%clk 0:02:59.9]} 2. Nf3 {[%clk 0:03:00.5]}
2... d6 {[%clk 0:03:00.1]} 3. d4 {[%clk 0:02:59.7]} 3... cxd4 {[%clk 0:03:01]}
4. Nxd4 {[%clk 0:03:00.2]} 4... Nf6 {[%clk 0:03:01.2]} 5. Nc3 {[%clk 0:02:59.7]}
5... g6 {[%clk 0:03:01.3]} 6. f3 {[%clk 0:02:54.4]} 6... Bg7 {[%clk 0:03:00.6]}
7. Be3 {[%clk 0:02:54.7]} 7... Nc6 {[%clk 0:03:00]} 8. Bc4 {[%clk 0:02:52.6]}
8... O-O {[%clk 0:02:59.3]} 9. Bb3 {[%clk 0:02:52.2]} 9... Bd7 {[%clk
0:02:58.5]} 10. Qd2 {[%clk 0:02:52.4]} 10... Ne5 {[%clk 0:02:53.3]} 11. O-O-O
{[%clk 0:02:51.3]} 11... Rb8 {[%clk 0:02:53.2]} 12. h4 {[%clk 0:02:50.4]} 12...
b5 {[%clk 0:02:47.9]} 13. g4 {[%clk 0:02:48.5]} 13... a5 {[%clk 0:02:47.8]} 14.
a3 {[%clk 0:02:31.5]} 14... a4 {[%clk 0:02:47.9]} 15. Ba2 {[%clk 0:02:31.4]}
15... b4 {[%clk 0:02:48.5]} 16. Nb1 {[%clk 0:02:27.1]} 16... b3 {[%clk
0:02:24.3]} 17. cxb3 {[%clk 0:02:26.8]} 17... axb3 {[%clk 0:02:20.6]} 18. Bxb3
{[%clk 0:02:26.7]} 18... Rxb3 {[%clk 0:02:20]} 19. Nxb3 {[%clk 0:02:26.2]} 19...
Nxf3 {[%clk 0:02:02.7]} 20. Qg2 {[%clk 0:02:14.3]} 20... Bxg4 {[%clk 0:01:59.4]}
21. Nc3 {[%clk 0:02:10.8]} 21... Qb8 {[%clk 0:01:56.2]} 22. Nd4 {[%clk
0:02:07.1]} 22... Ne5 {[%clk 0:01:16.3]} 23. Rdf1 {[%clk 0:01:59.4]} 23... Nfd7
{[%clk 0:01:15.1]} 24. h5 {[%clk 0:01:52.9]} 24... Nc5 {[%clk 0:01:09.4]} 25.
hxg6 {[%clk 0:01:44.6]} 25... hxg6 {[%clk 0:00:34.3]} 26. Ndb5 {[%clk
0:01:19.8]} 26... Ned3+ {[%clk 0:00:27.6]} 27. Kb1 {[%clk 0:01:15.3]} 27... Na4
{[%clk 0:00:21.9]} 28. Qh2 {[%clk 0:00:52.5]} 28... Nxc3+ {[%clk 0:00:10.5]} 29.
Nxc3 {[%clk 0:00:51.8]} 29... Rc8 {[%clk 0:00:11]} 30. Na4 {[%clk 0:00:18.8]}
30... Qb3 {[%clk 0:00:08.5]} 31. Qh7+ {[%clk 0:00:15.7]} 31... Kf8 {[%clk
0:00:07.7]} 32. Bh6 {[%clk 0:00:16.1]} 32... Ke8 {[%clk 0:00:03.4]} 33. Bxg7
{[%clk 0:00:15.6]} 33... Qxa4 {[%clk 0:00:02.6]} 34. Qg8+ {[%clk 0:00:07.3]}
34... Kd7 {[%clk 0:00:02.8]} 35. Qxf7 {[%clk 0:00:08]} 35... Be6 {[%clk
0:00:03.3]} 36. Qxg6 {[%clk 0:00:06.8]} 36... Qb3 {[%clk 0:00:03.2]} 37. Qxe6+
{[%clk 0:00:03.3]} 37... Qxe6 {[%clk 0:00:03.6]} 38. Bc3 {[%clk 0:00:03.4]}
38... Qb3 {[%clk 0:00:03.7]} 39. Rh2 {[%clk 0:00:02]} 39... Rxc3 {[%clk
0:00:03.6]} 40. Rg1 {[%clk 0:00:01.9]} 40... Qc2+ {[%clk 0:00:03.7]} 41. Ka1
{[%clk 0:00:01.8]} 41... Qb3 {[%clk 0:00:03.1]} 42. Rb1 {[%clk 0:00:01.4]} 42...
Rc2 {[%clk 0:00:03.2]} 0-1

[Event "Early-Titled-Tuesday-Blitz-August-29-2023"]
[Site "Chess.com"]
[Date "2023.08.29"]
[Round "6"]
[White "rikchessmx"]
[Black "valemava"]
[Result "1/2-1/2"]
[WhiteElo "2449"]
[BlackElo "2326"]
[TimeControl "180+1"]
[EndTime "9:06:54 PDT"]
[Termination "Game drawn by repetition"]

1. e4 {[%clk 0:02:54.6]} 1... c5 {[%clk 0:02:58.9]} 2. Nf3 {[%clk 0:02:54.2]}
2... Qa5 {[%clk 0:02:58.7]} 3. Nc3 {[%clk 0:02:52.4]} 3... a6 {[%clk 0:02:57.6]}
4. d4 {[%clk 0:02:49.9]} 4... b5 {[%clk 0:02:57.7]} 5. dxc5 {[%clk 0:02:49.4]}
5... e6 {[%clk 0:02:57.7]} 6. Be3 {[%clk 0:02:38.8]} 6... b4 {[%clk 0:02:58.6]}
7. Nb1 {[%clk 0:02:38.4]} 7... Bxc5 {[%clk 0:02:58.1]} 8. Bxc5 {[%clk
0:02:37.1]} 8... Qxc5 {[%clk 0:02:59]} 9. Bd3 {[%clk 0:02:36.8]} 9... Nf6 {[%clk
0:02:56.3]} 10. O-O {[%clk 0:02:36.5]} 10... Bb7 {[%clk 0:02:56.7]} 11. Nbd2
{[%clk 0:02:36.3]} 11... d6 {[%clk 0:02:53.9]} 12. Re1 {[%clk 0:02:33.5]} 12...
Nc6 {[%clk 0:02:53.6]} 13. Nb3 {[%clk 0:02:33.4]} 13... Qb6 {[%clk 0:02:52.9]}
14. a4 {[%clk 0:02:29.9]} 14... O-O {[%clk 0:02:47.4]} 15. a5 {[%clk 0:02:29.6]}
15... Qc7 {[%clk 0:02:46.9]} 16. Qd2 {[%clk 0:02:25.2]} 16... h6 {[%clk
0:02:45.1]} 17. Qf4 {[%clk 0:02:24.2]} 17... Ne5 {[%clk 0:02:42.1]} 18. Nxe5
{[%clk 0:02:22.1]} 18... dxe5 {[%clk 0:02:43]} 19. Qd2 {[%clk 0:02:19.1]} 19...
Rab8 {[%clk 0:02:37.6]} 20. Re3 {[%clk 0:02:14.3]} 20... Rfd8 {[%clk 0:02:35.3]}
21. Rae1 {[%clk 0:02:12]} 21... Qd6 {[%clk 0:02:30.2]} 22. Qe2 {[%clk
0:02:03.1]} 22... Kf8 {[%clk 0:02:17]} 23. h4 {[%clk 0:01:58]} 23... Rbc8 {[%clk
0:02:15.8]} 24. g4 {[%clk 0:01:57.4]} 24... g5 {[%clk 0:02:12.8]} 25. Rh3 {[%clk
0:01:49.5]} 25... Ke7 {[%clk 0:02:11.6]} 26. h5 {[%clk 0:01:48.3]} 26... Rc7
{[%clk 0:01:56.5]} 27. Re3 {[%clk 0:01:45.3]} 27... Rdc8 {[%clk 0:01:55.9]} 28.
Kh2 {[%clk 0:01:44.9]} 28... Nd7 {[%clk 0:01:32.4]} 29. Rd1 {[%clk 0:01:27.3]}
29... Qc6 {[%clk 0:01:17.1]} 30. Rd2 {[%clk 0:01:09.2]} 30... Qa4 {[%clk
0:01:12.7]} 31. Qf3 {[%clk 0:00:57]} 31... Nc5 {[%clk 0:01:04]} 32. Nxc5 {[%clk
0:00:48.5]} 32... Rxc5 {[%clk 0:01:04.9]} 33. b3 {[%clk 0:00:48]} 33... Qxa5
{[%clk 0:01:04.2]} 34. Bc4 {[%clk 0:00:45.3]} 34... Rxc4 {[%clk 0:01:01.9]} 35.
bxc4 {[%clk 0:00:44.8]} 35... Rxc4 {[%clk 0:01:02.6]} 36. Red3 {[%clk
0:00:43.9]} 36... Rc7 {[%clk 0:00:55.3]} 37. Qe3 {[%clk 0:00:39.1]} 37... Qb5
{[%clk 0:00:52.2]} 38. f3 {[%clk 0:00:36.5]} 38... a5 {[%clk 0:00:51.8]} 39. Qf2
{[%clk 0:00:21.5]} 39... a4 {[%clk 0:00:51.9]} 40. Qe1 {[%clk 0:00:21.6]} 40...
a3 {[%clk 0:00:51.1]} 41. Qa1 {[%clk 0:00:21.2]} 41... Bc6 {[%clk 0:00:44.6]}
42. Qa2 {[%clk 0:00:20.2]} 42... Qc5 {[%clk 0:00:43]} 43. Qb3 {[%clk 0:00:18.5]}
43... Bb5 {[%clk 0:00:41.4]} 44. Rd8 {[%clk 0:00:17.3]} 44... Rd7 {[%clk
0:00:40]} 45. R8xd7+ {[%clk 0:00:16.4]} 45... Bxd7 {[%clk 0:00:40.9]} 46. Qd3
{[%clk 0:00:15.9]} 46... Qc7 {[%clk 0:00:29.9]} 47. Qa6 {[%clk 0:00:14.1]} 47...
Bc8 {[%clk 0:00:22.3]} 48. Qa8 {[%clk 0:00:12.6]} 48... Qc3 {[%clk 0:00:19.8]}
49. Qa7+ {[%clk 0:00:11.4]} 49... Kf8 {[%clk 0:00:17.8]} 50. Qf2 {[%clk
0:00:10.4]} 50... a2 {[%clk 0:00:17.1]} 51. Rd8+ {[%clk 0:00:08.3]} 51... Ke7
{[%clk 0:00:17.3]} 52. Rxc8 {[%clk 0:00:06.6]} 52... Qxc8 {[%clk 0:00:16.8]} 53.
Qa7+ {[%clk 0:00:07.1]} 53... Qd7 {[%clk 0:00:17.3]} 54. Qxa2 {[%clk 0:00:06.9]}
54... Qd2+ {[%clk 0:00:17.4]} 55. Kg3 {[%clk 0:00:07.2]} 55... Qe1+ {[%clk
0:00:17.5]} 56. Kg2 {[%clk 0:00:07.3]} 56... Qd2+ {[%clk 0:00:17.6]} 57. Kg3
{[%clk 0:00:07.6]} 57... Qe1+ {[%clk 0:00:17.4]} 58. Kg2 {[%clk 0:00:07.9]}
58... Qd2+ {[%clk 0:00:17.6]} 59. Kg3 {[%clk 0:00:08.4]} 1/2-1/2